[Event "Najdorf Memorial-B 2022"]
[Site "Warsaw"]
[Date "2022.07.10"]
[Round "2.6"]
[White "Michalowski, Patryk"]
[Black "Chiszko, Oskar"]
[Result "1-0"]
[ECO "B90"]
[WhiteElo "1726"]
[BlackElo "1446"]
[Annotator "NA RC"]
[PlyCount "85"]
[EventDate "2022.07.09"]
[EventType "swiss"]
[EventCountry "POL"]
[SourceTitle "playchess.com"]
[Source "ChessBase"]
[SourceQuality "1"]
[TimeControl "40/5400+30:1800+30"]

1. e4 {[%emt 0:00:03]} c5 {[%emt 0:00:06]} 2. Nf3 {[%emt 0:00:07]} d6 {[%emt 0:00:07]} 3. d4 {[%emt 0:00:29]} cxd4 {[%emt 0:00:26]} 4. Nxd4 {[%emt 0:00:07]} Nf6 {[%emt 0:00:07]} 5. Nc3 {[%emt 0:00:07]} a6 {[%emt 0:00:09]} 6. Bc4 {[%emt 0:00:35]} e6 {[%emt 0:00:31]} 7. Bb3 {[%emt 0:00:06]} Be7 {[%emt 0:00:29]} 8. Be3 {[%emt 0:00:59]} O-O {[%emt 0:01:17]} 9. g4 {[%emt 0:08:44]} d5 {[%emt 0:10:16]} 10. exd5 {[%emt 0:38:20]} Nxd5 {[%emt 0:00:40]} 11. Nxd5 {[%emt 0:00:46]} exd5 {[%emt 0:00:10]} 12. Qf3 {[%emt 0:01:39]} Be6 {[%emt 0:03:38]} 13. O-O-O {[%emt 0:00:10]} Nc6 {[%emt 0:09:52]} 14. Nf5 {[%emt 0:04:45]} Bxf5 15. gxf5 d4 {[%emt 0:02:22]} 16. Rhg1 {[%emt 0:09:05]} Bf6 {[%emt 0:00:06]} 17. Qh5 {[%emt 0:05:00]} Qe7 {[%emt 0:02:36]} 18. Bg5 {[%emt 0:10:26]} d3 {[%emt 0:09:19]} 19. Rxd3 {[%emt 0:01:53]} Bxg5+ {[%emt 0:00:44]} 20. Rxg5 {[%emt 0:02:14]} Rad8 {[%emt 0:01:56]} 21. Re3 {[%emt 0:04:54]} Qd6 {[%emt 0:00:09]} 22. Rg1 {[%emt 0:03:34]} Nd4 {[%emt 0:00:53]} 23. c3 {[%emt 0:04:45]} Nxb3+ {[%emt 0:00:28]} 24. axb3 {[%emt 0:00:10]} f6 {[%emt 0:00:06]} 25. Rh3 {[%emt 0:01:43]} Qd2+ {[%emt 0:00:51]} 26. Kb1 {[%emt 0:00:11]} h6 {[%emt 0:00:06]} 27. Qg6 {[%emt 0:01:43]} Rf7 {[%emt 0:00:23]} 28. Rxh6 {[%emt 0:00:18]} Qd3+ {[%emt 0:01:21]} 29. Ka2 {[%emt 0:00:15]} Rd5 {[%emt 0:00:06]} 30. Qh7+ {[%emt 0:01:35]} Kf8 {[%emt 0:00:02]} 31. Qh8+ {[%emt 0:00:15]} Ke7 {[%emt 0:00:01]} 32. Re1+ {[%emt 0:00:12]} Kd6 {[%emt 0:01:16]} 33. Qd8+ {[%emt 0:00:45]} Kc6 {[%emt 0:00:13]} 34. Re6+ {[%emt 0:00:33]} Rd6 {[%emt 0:00:17]} 35. Rh4 {[%emt 0:00:54]} Rfd7 {[%emt 0:00:16]} 36. Rxd6+ {[%emt 0:00:19]} Qxd6 {[%emt 0:00:23]} 37. Rc4+ {[%emt 0:00:17]} Kb5 {[%emt 0:00:01]} 38. Rb4+ {[%emt 0:00:41]} Kc5 {[%emt 0:00:10]} 39. Qa5+ {[%emt 0:00:37]} b5 {[%emt 0:00:01]} 40. Rd4 {[%emt 0:00:00]} Qe7 {[%emt 0:00:00]} 41. b4+ {[%emt 0:00:33]} Kc6 {[%emt 0:00:28]} 42. Qxa6+ {[%emt 0:00:06]} Kc7 {[%emt 0:00:06]} 43. Qa7+ {[%emt 0:00:57]} 1-0

[Event "Najdorf Memorial-B 2022"]
[Site "Warsaw"]
[Date "2022.07.10"]
[Round "2.7"]
[White "Sternik, Piotr"]
[Black "Nowak, Lukasz"]
[Result "1/2-1/2"]
[ECO "D11"]
[WhiteElo "1434"]
[BlackElo "2327"]
[Annotator "RC"]
[PlyCount "122"]
[EventDate "2022.07.09"]
[EventType "swiss"]
[EventCountry "POL"]
[SourceTitle "playchess.com"]
[Source "ChessBase"]
[SourceQuality "1"]
[TimeControl "40/5400+30:1800+30"]

1. d4 {[%emt 0:00:05]} d5 {[%emt 0:00:10]} 2. c4 {[%emt 0:00:16]} c6 {[%emt 0:00:11]} 3. Nf3 {[%emt 0:00:18]} Nf6 {[%emt 0:00:08]} 4. e3 {[%emt 0:00:15]} a6 {[%emt 0:00:27]} 5. cxd5 {[%emt 0:00:30]} cxd5 {[%emt 0:00:09]} 6. Bd3 {[%emt 0:00:08]} Nc6 {[%emt 0:01:55]} 7. O-O {[%emt 0:00:17]} Bg4 {[%emt 0:00:32]} 8. Nbd2 {[%emt 0:01:19]} e6 {[%emt 0:00:51]} 9. a3 {[%emt 0:00:19]} Bd6 {[%emt 0:01:04]} 10. b4 {[%emt 0:01:08]} O-O {[%emt 0:02:03]} 11. Bb2 {[%emt 0:01:08]} Re8 {[%emt 0:09:16]} 12. Be2 {[%emt 0:07:57]} h6 {[%emt 0:11:42]} 13. Nb3 {[%emt 0:06:07]} Ne4 {[%emt 0:15:34]} 14. Nc5 {[%emt 0:05:03]} Qc7 {[%emt 0:03:30]} 15. h3 {[%emt 0:00:05]} Bf5 {[%emt 0:00:56]} 16. Rc1 {[%emt 0:01:08]} Nxc5 {[%emt 0:01:35]} 17. dxc5 {[%emt 0:00:22]} Be7 {[%emt 0:01:05]} 18. Bd3 {[%emt 0:02:55]} Bxd3 {[%emt 0:01:13]} 19. Qxd3 {[%emt 0:00:02]} Red8 {[%emt 0:02:31]} 20. Qb3 {[%emt 0:01:24]} b6 {[%emt 0:03:13]} 21. cxb6 {[%emt 0:09:51]} Qxb6 {[%emt 0:00:08]} 22. Bxg7 {[%emt 0:04:04]} Kxg7 {[%emt 0:04:07]} 23. Qc3+ {[%emt 0:00:16]} Bf6 {[%emt 0:00:06]} 24. Qxc6 {[%emt 0:00:06]} Qxc6 {[%emt 0:02:57]} 25. Rxc6 {[%emt 0:00:03]} Bb2 {[%emt 0:00:10]} 26. Rb1 {[%emt 0:00:05]} Bf6 {[%emt 0:01:14]} 27. a4 {[%emt 0:01:07]} Rdb8 {[%emt 0:00:53]} 28. Nd4 {[%emt 0:04:15]} Bxd4 {[%emt 0:01:01]} 29. exd4 {[%emt 0:00:02]} Rb7 {[%emt 0:02:18]} 30. Rc3 {[%emt 0:01:52]} Rab8 {[%emt 0:00:20]} 31. Rcb3 {[%emt 0:00:06]} Rc7 {[%emt 0:01:31]} 32. b5 {[%emt 0:00:35]} axb5 {[%emt 0:00:07]} 33. axb5 {[%emt 0:00:04]} Rc4 {[%emt 0:00:39]} 34. Rb4 {[%emt 0:00:06]} Rc2 {[%emt 0:00:10]} 35. R1b2 {[%emt 0:00:59]} Rc1+ {[%emt 0:00:51]} 36. Kh2 {[%emt 0:00:02]} Rc3 {[%emt 0:00:06]} 37. R2b3 {[%emt 0:01:02]} Rc2 {[%emt 0:02:57]} 38. Kg3 {[%emt 0:01:05]} Kf6 {[%emt 0:01:19]} 39. Ra4 {[%emt 0:03:36]} Rc4 {[%emt 0:04:45]} 40. Rxc4 {[%emt 0:00:00]} dxc4 {[%emt 0:00:00]} 41. Rc3 {[%emt 0:02:59]} Rxb5 {[%emt 0:00:15]} 42. Rxc4 {[%emt 0:00:04]} Rb3+ {[%emt 0:01:44]} 43. Kf4 {[%emt 0:00:35]} Rb2 {[%emt 0:00:29]} 44. Ke3 {[%emt 0:00:01]} Rb3+ {[%emt 0:01:00]} 45. Kd2 {[%emt 0:00:53]} Rb2+ {[%emt 0:01:56]} 46. Rc2 {[%emt 0:00:01]} Rb3 {[%emt 0:01:36]} 47. Rc3 {[%emt 0:00:37]} Rb2+ {[%emt 0:00:06]} 48. Ke3 {[%emt 0:00:01]} Kg6 {[%emt 0:01:02]} 49. g3 {[%emt 0:00:18]} Kf6 {[%emt 0:03:27]} 50. h4 {[%emt 0:02:18]} Kg6 {[%emt 0:01:53]} 51. f3 {[%emt 0:00:08]} Rb1 {[%emt 0:00:18]} 52. Ke4 {[%emt 0:01:52]} Re1+ {[%emt 0:09:44]} 53. Kf4 {[%emt 0:00:07]} Rd1 {[%emt 0:00:37]} 54. Ke4 {[%emt 0:01:58]} Re1+ {[%emt 0:00:17]} 55. Re3 {[%emt 0:00:01]} Rd1 {[%emt 0:00:13]} 56. Ke5 {[%emt 0:02:10]} Ra1 {[%emt 0:06:27]} 57. h5+ {[%emt 0:01:41]} Kg5 {[%emt 0:07:31]} 58. Re4 {[%emt 0:07:26]} Ra5+ {[%emt 0:00:55]} 59. Kd6 {[%emt 0:00:10]} Ra6+ {[%emt 0:04:52]} 60. Ke7 Ra7+ 61. Kf8 Kxh5 1/2-1/2

[Event "Najdorf Memorial-B 2022"]
[Site "Warsaw"]
[Date "2022.07.10"]
[Round "2.8"]
[White "Szyszko, Jan"]
[Black "Kobus, Stanislaw"]
[Result "1/2-1/2"]
[ECO "E91"]
[WhiteElo "1706"]
[BlackElo "1427"]
[Annotator "NA RC"]
[PlyCount "44"]
[EventDate "2022.07.09"]
[EventType "swiss"]
[EventCountry "POL"]
[SourceTitle "playchess.com"]
[Source "ChessBase"]
[SourceQuality "1"]
[TimeControl "40/5400+30:1800+30"]

1. Nf3 {[%emt 0:00:11]} g6 {[%emt 0:02:30]} 2. e4 {[%emt 0:00:04]} Bg7 {[%emt 0:00:30]} 3. d4 {[%emt 0:00:05]} d6 {[%emt 0:00:20]} 4. c4 {[%emt 0:00:05]} Nf6 {[%emt 0:00:54]} 5. Nc3 {[%emt 0:00:05]} O-O {[%emt 0:00:29]} 6. Be2 {[%emt 0:00:05]} c5 {[%emt 0:00:14]} 7. O-O {[%emt 0:00:25]} cxd4 {[%emt 0:05:22]} 8. Nxd4 {[%emt 0:00:06]} Nc6 {[%emt 0:00:55]} 9. Be3 {[%emt 0:01:40]} Bd7 {[%emt 0:03:26]} 10. Rc1 {[%emt 0:02:57]} Nxd4 {[%emt 0:05:09]} 11. Bxd4 {[%emt 0:00:06]} Bc6 {[%emt 0:00:14]} 12. f3 {[%emt 0:00:19]} Bh6 {[%emt 0:01:46]} 13. Rc2 {[%emt 0:02:42]} Nh5 {[%emt 0:09:16]} 14. b4 {[%emt 0:11:23]} b6 {[%emt 0:02:47]} 15. b5 {[%emt 0:02:49]} Bb7 {[%emt 0:03:17]} 16. Nd5 {[%emt 0:01:31]} Nf4 {[%emt 0:06:36]} 17. Nxf4 {[%emt 0:12:52]} Bxf4 {[%emt 0:00:19]} 18. Qd3 {[%emt 0:03:16]} f5 {[%emt 0:01:23]} 19. exf5 Rxf5 {[%emt 0:00:35]} 20. g3 {[%emt 0:08:52]} Be5 {[%emt 0:04:25]} 21. f4 {[%emt 0:02:21]} Bxd4+ {[%emt 0:05:03]} 22. Qxd4 {[%emt 0:00:07]} e5 {[%emt 0:01:15]} 1/2-1/2

[Event "Najdorf Memorial-B 2022"]
[Site "Warsaw"]
[Date "2022.07.10"]
[Round "2.9"]
[White "Hartman, Aleksander"]
[Black "Stefaniuk, Zbigniew"]
[Result "1/2-1/2"]
[ECO "C50"]
[WhiteElo "1422"]
[BlackElo "1702"]
[Annotator "NA RC"]
[PlyCount "81"]
[EventDate "2022.07.09"]
[EventType "swiss"]
[EventCountry "POL"]
[SourceTitle "playchess.com"]
[Source "ChessBase"]
[SourceQuality "1"]
[TimeControl "40/5400+30:1800+30"]

1. e4 {[%emt 0:00:03]} e5 {[%emt 0:00:07]} 2. Nf3 {[%emt 0:00:57]} Nc6 {[%emt 0:00:11]} 3. Bc4 {[%emt 0:00:04]} Nf6 {[%emt 0:00:14]} 4. d3 {[%emt 0:00:05]} Bc5 {[%emt 0:00:17]} 5. c3 {[%emt 0:00:07]} d6 {[%emt 0:00:13]} 6. Bb3 {[%emt 0:00:17]} O-O {[%emt 0:00:22]} 7. Nbd2 {[%emt 0:00:14]} a6 {[%emt 0:01:24]} 8. a4 {[%emt 0:00:25]} Ba7 {[%emt 0:00:47]} 9. Nf1 {[%emt 0:00:18]} h6 {[%emt 0:15:41]} 10. Ng3 {[%emt 0:04:57]} Ne7 {[%emt 0:01:01]} 11. O-O {[%emt 0:07:36]} Ng6 {[%emt 0:00:45]} 12. Be3 {[%emt 0:02:53]} Bxe3 {[%emt 0:17:09]} 13. fxe3 {[%emt 0:00:18]} Be6 {[%emt 0:00:34]} 14. Bxe6 {[%emt 0:06:14]} fxe6 {[%emt 0:00:02]} 15. Qb3 {[%emt 0:00:09]} Qd7 {[%emt 0:10:39]} 16. d4 {[%emt 0:10:03]} exd4 {[%emt 0:00:30]} 17. exd4 {[%emt 0:00:40]} b5 {[%emt 0:09:51]} 18. c4 {[%emt 0:14:43]} bxa4 {[%emt 0:11:40]} 19. Rxa4 {[%emt 0:07:48]} Rfb8 {[%emt 0:03:00]} 20. Rb4 {[%emt 0:00:27]} Rxb4 {[%emt 0:01:26]} 21. Qxb4 {[%emt 0:00:11]} a5 {[%emt 0:01:46]} 22. Qb7 {[%emt 0:06:46]} Qc8 {[%emt 0:00:32]} 23. Qc6 {[%emt 0:00:20]} Qa6 {[%emt 0:07:43]} 24. Qa4 {[%emt 0:01:16]} Rb8 {[%emt 0:01:00]} 25. Qc2 {[%emt 0:07:05]} e5 {[%emt 0:01:54]} 26. dxe5 {[%emt 0:07:12]} dxe5 {[%emt 0:00:33]} 27. Nf5 {[%emt 0:00:24]} Qb6+ {[%emt 0:03:35]} 28. c5 {[%emt 0:00:25]} Qb3 {[%emt 0:04:03]} 29. Qd2 {[%emt 0:04:51]} Qxb2 {[%emt 0:04:07]} 30. Nxh6+ {[%emt 0:00:45]} gxh6 {[%emt 0:01:53]} 31. Qxh6 {[%emt 0:00:07]} Nf4 {[%emt 0:01:23]} 32. Qg5+ {[%emt 0:01:19]} Kh7 {[%emt 0:00:56]} 33. Nxe5 {[%emt 0:00:27]} Rg8 {[%emt 0:00:54]} 34. Qf5+ {[%emt 0:00:08]} Rg6 {[%emt 0:00:47]} 35. Rf2 {[%emt 0:01:07]} Qa1+ {[%emt 0:00:22]} 36. Rf1 {[%emt 0:00:05]} Qb2 {[%emt 0:00:27]} 37. Rf2 {[%emt 0:00:08]} Qa1+ {[%emt 0:00:17]} 38. Rf1 {[%emt 0:00:04]} Qb2 39. Rf2 Qc1+ 40. Rf1 Qe3+ 41. Kh1 1/2-1/2

[Event "Najdorf Memorial-B 2022"]
[Site "Warsaw"]
[Date "2022.07.10"]
[Round "2.10"]
[White "Gajewski, Dariusz"]
[Black "Przybyla, Andrzej"]
[Result "1-0"]
[ECO "B20"]
[WhiteElo "1697"]
[BlackElo "1418"]
[Annotator "NA RC"]
[PlyCount "87"]
[EventDate "2022.07.09"]
[EventType "swiss"]
[EventCountry "POL"]
[SourceTitle "playchess.com"]
[Source "ChessBase"]
[SourceQuality "1"]
[TimeControl "40/5400+30:1800+30"]

1. e4 {[%emt 0:03:25]} c5 {[%emt 0:00:06]} 2. a3 {[%emt 0:00:01]} e6 {[%emt 0:00:15]} 3. b4 {[%emt 0:00:02]} cxb4 {[%emt 0:00:24]} 4. axb4 {[%emt 0:00:01]} Bxb4 {[%emt 0:00:28]} 5. Bb2 {[%emt 0:00:04]} Nf6 {[%emt 0:00:19]} 6. e5 {[%emt 0:00:03]} Nd5 {[%emt 0:00:38]} 7. c4 {[%emt 0:00:04]} Nb6 {[%emt 0:00:45]} 8. Ra3 {[%emt 0:00:06]} Nc6 {[%emt 0:08:56]} 9. Rg3 {[%emt 0:00:07]} g6 {[%emt 0:03:23]} 10. h4 {[%emt 0:01:43]} h5 {[%emt 0:00:21]} 11. Nf3 {[%emt 0:00:12]} Ne7 {[%emt 0:06:07]} 12. Bd3 {[%emt 0:00:06]} d5 {[%emt 0:05:21]} 13. Nc3 {[%emt 0:11:06]} dxc4 {[%emt 0:03:50]} 14. Bc2 {[%emt 0:00:24]} Nbd5 {[%emt 0:08:07]} 15. Ne4 {[%emt 0:04:58]} Nf5 {[%emt 0:08:59]} 16. Rg5 {[%emt 0:13:53]} Be7 {[%emt 0:04:15]} 17. g4 {[%emt 0:07:49]} hxg4 {[%emt 0:02:10]} 18. Rxg4 {[%emt 0:00:10]} Qb6 {[%emt 0:00:53]} 19. Ba1 {[%emt 0:04:53]} Bd7 {[%emt 0:05:24]} 20. Nd6+ Bxd6 {[%emt 0:00:34]} 21. exd6 {[%emt 0:16:37]} Rg8 {[%emt 0:00:35]} 22. Bxf5 {[%emt 0:00:56]} exf5 {[%emt 0:00:18]} 23. Rxc4 {[%emt 0:01:37]} Qxd6 {[%emt 0:00:45]} 24. O-O {[%emt 0:01:51]} Be6 {[%emt 0:05:35]} 25. Re1 {[%emt 0:01:57]} Ke7 {[%emt 0:01:44]} 26. Qb3 {[%emt 0:06:10]} Qb6 {[%emt 0:04:15]} 27. Qa3+ {[%emt 0:02:07]} Qd6 {[%emt 0:01:18]} 28. Qc1 {[%emt 0:00:56]} b5 {[%emt 0:07:36]} 29. Rc6 {[%emt 0:03:32]} Qb4 {[%emt 0:04:08]} 30. Nd4 {[%emt 0:08:06]} Kf8 {[%emt 0:01:58]} 31. Bb2 {[%emt 0:00:08]} Ne7 {[%emt 0:01:29]} 32. Rcxe6 {[%emt 0:04:20]} fxe6 {[%emt 0:00:18]} 33. Nxe6+ {[%emt 0:00:10]} Kf7 {[%emt 0:00:13]} 34. Ng5+ {[%emt 0:00:17]} Kf8 {[%emt 0:00:18]} 35. Ne6+ {[%emt 0:01:04]} Kf7 {[%emt 0:00:08]} 36. Ng5+ {[%emt 0:00:02]} Kf8 {[%emt 0:00:15]} 37. Ba3 {[%emt 0:02:45]} Qg4+ {[%emt 0:00:12]} 38. Kf1 {[%emt 0:00:02]} Re8 {[%emt 0:04:06]} 39. Rxe7 {[%emt 0:01:46]} Rxe7 {[%emt 0:01:43]} 40. Bxe7+ {[%emt 0:00:00]} Kxe7 {[%emt 0:00:00]} 41. Qc7+ {[%emt 0:01:27]} Ke8 {[%emt 0:00:32]} 42. Qf7+ {[%emt 0:03:00]} Kd8 {[%emt 0:00:09]} 43. Ne6+ {[%emt 0:00:28]} Kc8 {[%emt 0:00:07]} 44. Qc7# {[%emt 0:00:03]} 1-0

[Event "Najdorf Memorial-B 2022"]
[Site "Warsaw"]
[Date "2022.07.10"]
[Round "2.11"]
[White "Napieralski, Lucjan"]
[Black "Szewczak, Andrzej"]
[Result "1-0"]
[ECO "C60"]
[WhiteElo "1414"]
[BlackElo "1694"]
[Annotator "NA RC"]
[PlyCount "145"]
[EventDate "2022.07.09"]
[EventType "swiss"]
[EventCountry "POL"]
[SourceTitle "playchess.com"]
[Source "ChessBase"]
[SourceQuality "1"]
[TimeControl "40/5400+30:1800+30"]

1. e4 {[%emt 0:00:02]} e5 {[%emt 0:00:01]} 2. Nf3 {[%emt 0:00:07]} Nc6 {[%emt 0:00:02]} 3. Bb5 {[%emt 0:00:06]} Qf6 {[%emt 0:00:05]} 4. O-O {[%emt 0:01:48]} Bc5 {[%emt 0:00:06]} 5. c3 {[%emt 0:00:19]} Nge7 {[%emt 0:00:16]} 6. d3 {[%emt 0:04:39]} h6 {[%emt 0:00:04]} 7. Be3 {[%emt 0:01:33]} Bb6 {[%emt 0:00:01]} 8. d4 {[%emt 0:04:10]} a6 {[%emt 0:00:44]} 9. Ba4 {[%emt 0:01:02]} Ba7 {[%emt 0:00:11]} 10. Bc2 {[%emt 0:04:28]} d6 {[%emt 0:00:17]} 11. d5 {[%emt 0:05:44]} Nd8 {[%emt 0:00:32]} 12. Bxa7 {[%emt 0:00:37]} Rxa7 {[%emt 0:00:01]} 13. Qd3 {[%emt 0:08:31]} O-O {[%emt 0:00:15]} 14. Qe3 {[%emt 0:00:11]} Ra8 {[%emt 0:00:20]} 15. Nbd2 {[%emt 0:00:26]} g5 {[%emt 0:00:07]} 16. Rfc1 {[%emt 0:01:10]} Qg6 {[%emt 0:00:39]} 17. Ne1 {[%emt 0:03:35]} f5 {[%emt 0:00:35]} 18. f3 {[%emt 0:00:38]} f4 {[%emt 0:00:09]} 19. Qe2 {[%emt 0:01:37]} h5 {[%emt 0:00:07]} 20. Nd3 {[%emt 0:01:05]} Nf7 {[%emt 0:00:10]} 21. Kf2 {[%emt 0:06:00]} Qf6 {[%emt 0:00:23]} 22. Rh1 {[%emt 0:02:52]} Ng6 {[%emt 0:00:24]} 23. Rag1 {[%emt 0:00:37]} g4 {[%emt 0:02:27]} 24. Ke1 {[%emt 0:02:50]} Ng5 {[%emt 0:00:12]} 25. Kd1 {[%emt 0:16:52]} Rf7 {[%emt 0:09:31]} 26. Kc1 {[%emt 0:00:25]} Bd7 {[%emt 0:00:23]} 27. Bd1 {[%emt 0:03:40]} gxf3 {[%emt 0:01:12]} 28. gxf3 {[%emt 0:00:37]} Nh3 {[%emt 0:01:24]} 29. Rf1 {[%emt 0:01:03]} Kh7 {[%emt 0:00:45]} 30. Nf2 {[%emt 0:01:07]} Rg8 {[%emt 0:00:14]} 31. Nxh3 {[%emt 0:02:06]} Bxh3 {[%emt 0:00:01]} 32. Rfg1 {[%emt 0:00:01]} Rfg7 {[%emt 0:00:17]} 33. Qf2 {[%emt 0:02:36]} b6 {[%emt 0:01:47]} 34. Be2 {[%emt 0:02:55]} a5 {[%emt 0:00:22]} 35. Bf1 {[%emt 0:00:49]} Bxf1 {[%emt 0:00:10]} 36. Qxf1 {[%emt 0:01:22]} Qh4 {[%emt 0:00:48]} 37. Rg2 {[%emt 0:01:22]} Nf8 {[%emt 0:00:54]} 38. Rhg1 {[%emt 0:00:38]} Rg6 {[%emt 0:00:52]} 39. Rxg6 {[%emt 0:02:39]} Rxg6 {[%emt 0:00:01]} 40. Rxg6 {[%emt 0:00:00]} Nxg6 {[%emt 0:00:00]} 41. Qg2 {[%emt 0:13:50]} Qe1+ {[%emt 0:00:39]} 42. Kc2 {[%emt 0:00:31]} Nh4 {[%emt 0:00:15]} 43. Qh3 {[%emt 0:00:42]} Qf2 {[%emt 0:01:02]} 44. Qd7+ {[%emt 0:02:00]} Kh6 {[%emt 0:00:02]} 45. Qxc7 {[%emt 0:01:02]} Qxh2 {[%emt 0:00:35]} 46. Qxd6+ {[%emt 0:00:20]} Kh7 {[%emt 0:05:30]} 47. Qe7+ {[%emt 0:06:43]} Kg8 {[%emt 0:00:13]} 48. d6 {[%emt 0:08:11]} Nxf3 {[%emt 0:00:09]} 49. d7 {[%emt 0:00:20]} Qxd2+ {[%emt 0:00:05]} 50. Kb3 {[%emt 0:00:18]} Nd4+ {[%emt 0:00:19]} 51. cxd4 {[%emt 0:01:13]} Qd3+ {[%emt 0:00:19]} 52. Ka4 {[%emt 0:00:55]} Qxd4+ {[%emt 0:00:02]} 53. Kb5 {[%emt 0:07:59]} Qd3+ {[%emt 0:00:09]} 54. Kxb6 {[%emt 0:03:24]} Qd4+ {[%emt 0:00:19]} 55. Kxa5 {[%emt 0:02:24]} Qa7+ {[%emt 0:00:37]} 56. Kb5 {[%emt 0:00:26]} Qb7+ {[%emt 0:00:05]} 57. Kc5 {[%emt 0:00:37]} Qa7+ {[%emt 0:01:10]} 58. Kb4 {[%emt 0:01:02]} Qd4+ {[%emt 0:00:22]} 59. Ka3 {[%emt 0:00:31]} Qe3+ {[%emt 0:00:23]} 60. Ka4 {[%emt 0:00:32]} Qa7+ {[%emt 0:00:08]} 61. Kb5 {[%emt 0:00:13]} Qb7+ {[%emt 0:00:06]} 62. Kc5 {[%emt 0:01:09]} Qa7+ {[%emt 0:00:01]} 63. Kd6 {[%emt 0:00:55]} Qb6+ {[%emt 0:01:01]} 64. Kxe5 {[%emt 0:00:29]} Qxb2+ {[%emt 0:00:03]} 65. Kf5 {[%emt 0:00:50]} Qb5+ {[%emt 0:00:56]} 66. e5 {[%emt 0:00:02]} Qb1+ {[%emt 0:00:51]} 67. Kf6 {[%emt 0:00:38]} Qb6+ {[%emt 0:00:01]} 68. Qe6+ {[%emt 0:00:18]} Qxe6+ {[%emt 0:00:12]} 69. Kxe6 {[%emt 0:00:06]} f3 {[%emt 0:00:03]} 70. d8=Q+ Kh7 71. Kf7 {[%emt 0:00:49]} f2 {[%emt 0:00:03]} 72. Qg8+ {[%emt 0:00:14]} Kh6 {[%emt 0:00:03]} 73. Qg6# 1-0

[Event "Najdorf Memorial-B 2022"]
[Site "Warsaw"]
[Date "2022.07.10"]
[Round "2.12"]
[White "Przybylski, Jan"]
[Black "Wasylewski, Marcin"]
[Result "1-0"]
[ECO "B98"]
[WhiteElo "1685"]
[BlackElo "1412"]
[Annotator "NA RC"]
[PlyCount "56"]
[EventDate "2022.07.09"]
[EventType "swiss"]
[EventCountry "POL"]
[SourceTitle "playchess.com"]
[Source "ChessBase"]
[SourceQuality "1"]
[TimeControl "40/5400+30:1800+30"]

1. e4 {[%emt 0:00:01]} c5 {[%emt 0:00:05]} 2. Nf3 {[%emt 0:00:04]} d6 {[%emt 0:00:04]} 3. d4 {[%emt 0:00:04]} cxd4 {[%emt 0:00:06]} 4. Nxd4 {[%emt 0:00:06]} Nf6 {[%emt 0:00:06]} 5. Nc3 {[%emt 0:00:06]} a6 {[%emt 0:00:04]} 6. Bg5 {[%emt 0:00:14]} e6 {[%emt 0:00:08]} 7. f4 {[%emt 0:00:15]} Be7 {[%emt 0:00:07]} 8. Qf3 {[%emt 0:00:16]} Nbd7 {[%emt 0:00:13]} 9. O-O-O {[%emt 0:00:21]} h6 {[%emt 0:00:23]} 10. Bxf6 {[%emt 0:01:50]} Nxf6 {[%emt 0:05:06]} 11. e5 {[%emt 0:01:42]} Nd7 {[%emt 0:29:58]} 12. exd6 {[%emt 0:01:11]} Bf6 {[%emt 0:09:44]} 13. Bc4 {[%emt 0:01:44]} Nb6 {[%emt 0:06:46]} 14. Bb3 {[%emt 0:20:30]} O-O {[%emt 0:03:18]} 15. Rhe1 {[%emt 0:01:55]} Re8 {[%emt 0:07:20]} 16. Qe4 {[%emt 0:05:36]} e5 {[%emt 0:10:38]} 17. Nf3 {[%emt 0:03:58]} Bg4 {[%emt 0:10:11]} 18. fxe5 {[%emt 0:01:26]} Bxf3 {[%emt 0:04:14]} 19. Qxf3 {[%emt 0:03:19]} Rxe5 {[%emt 0:02:53]} 20. Rxe5 {[%emt 0:00:37]} Bxe5 {[%emt 0:00:07]} 21. Qxf7+ {[%emt 0:00:11]} Kh8 {[%emt 0:00:08]} 22. Ne4 {[%emt 0:02:00]} Qh4 {[%emt 0:02:42]} 23. Qxb7 {[%emt 0:01:07]} Rf8 {[%emt 0:03:23]} 24. g3 {[%emt 0:01:41]} Qg4 {[%emt 0:01:17]} 25. Qxb6 {[%emt 0:01:04]} Qxe4 {[%emt 0:00:47]} 26. d7 {[%emt 0:00:33]} Bc7 {[%emt 0:03:04]} 27. Qxc7 {[%emt 0:01:04]} Qe3+ {[%emt 0:00:08]} 28. Kb1 {[%emt 0:00:06]} Qd4 1-0

[Event "Najdorf Memorial-B 2022"]
[Site "Warsaw"]
[Date "2022.07.10"]
[Round "2.13"]
[White "Wnuk, Piotr"]
[Black "Nocek, Dominik"]
[Result "1/2-1/2"]
[ECO "A02"]
[WhiteElo "1412"]
[BlackElo "1682"]
[Annotator "NA RC"]
[PlyCount "62"]
[EventDate "2022.07.09"]
[EventType "swiss"]
[EventCountry "POL"]
[SourceTitle "playchess.com"]
[Source "ChessBase"]
[SourceQuality "1"]
[TimeControl "40/5400+30:1800+30"]

1. f4 Nf6 {[%emt 0:00:09]} 2. Nf3 {[%emt 0:00:10]} g6 {[%emt 0:00:39]} 3. b3 {[%emt 0:00:14]} Bg7 {[%emt 0:00:43]} 4. Bb2 {[%emt 0:00:08]} O-O {[%emt 0:00:16]} 5. e3 {[%emt 0:00:09]} c5 {[%emt 0:02:18]} 6. Be2 {[%emt 0:00:17]} Nc6 {[%emt 0:01:32]} 7. O-O {[%emt 0:00:25]} b6 {[%emt 0:03:27]} 8. h3 {[%emt 0:04:00]} d5 {[%emt 0:09:33]} 9. d3 {[%emt 0:07:39]} Bb7 {[%emt 0:14:37]} 10. Nbd2 {[%emt 0:02:27]} Ng4 {[%emt 0:11:58]} 11. hxg4 {[%emt 0:04:49]} Bxb2 {[%emt 0:00:03]} 12. Rb1 {[%emt 0:00:19]} Bg7 {[%emt 0:00:23]} 13. a3 {[%emt 0:01:34]} Qd7 {[%emt 0:12:54]} 14. Nh2 {[%emt 0:02:05]} e6 {[%emt 0:03:23]} 15. Ndf3 {[%emt 0:12:05]} Rae8 {[%emt 0:05:42]} 16. d4 cxd4 17. exd4 {[%emt 0:04:03]} Qd6 {[%emt 0:05:59]} 18. Ne5 {[%emt 0:04:02]} f6 {[%emt 0:05:17]} 19. Nxc6 {[%emt 0:01:51]} Bxc6 {[%emt 0:00:09]} 20. a4 {[%emt 0:01:16]} Rc8 {[%emt 0:03:22]} 21. Qd2 {[%emt 0:05:13]} Bd7 {[%emt 0:01:56]} 22. Nf3 {[%emt 0:02:46]} Rc7 {[%emt 0:03:58]} 23. Ba6 {[%emt 0:03:07]} Bc8 {[%emt 0:00:45]} 24. Bd3 {[%emt 0:00:27]} Bd7 {[%emt 0:00:55]} 25. Ba6 {[%emt 0:00:18]} Qc6 {[%emt 0:03:26]} 26. Bd3 {[%emt 0:00:55]} Qc3 {[%emt 0:02:39]} 27. Qxc3 {[%emt 0:02:12]} Rxc3 {[%emt 0:00:02]} 28. Rbe1 {[%emt 0:01:09]} Kf7 {[%emt 0:04:09]} 29. Re2 {[%emt 0:02:33]} Rb8 {[%emt 0:03:12]} 30. Ra1 {[%emt 0:01:20]} a5 {[%emt 0:00:32]} 31. g5 {[%emt 0:03:42]} f5 {[%emt 0:00:55]} 1/2-1/2